[Event "Titled Tuesday Blitz August 1 Late 2023"]
[White "Ozer, Omer Faruk"]
[Black "WindWhistler11"]
[WhiteFideId "6354564"]
[WhiteElo "2736"]
[BlackElo "2424"]
[Result "0-1"]
[Round "1"]
[TimeControl "180+1"]
[Date "2023.08.01"]
[WhiteClock "0:00:12"]
[BlackClock "0:00:17"]
[Board "62"]

1. d4 {[%clk 0:03:00]}  Nf6 {[%clk 0:03:00]} 2. Bg5 {[%clk 0:02:59]}  e6 {[%clk 0:03:00]} 3. e4 {[%clk 0:02:56]}  Be7 {[%clk 0:02:54]} 4. e5 {[%clk 0:02:53]}  Nd5 {[%clk 0:02:54]} 5. Bxe7 {[%clk 0:02:53]}  Nxe7 {[%clk 0:02:55]} 6. Nf3 {[%clk 0:02:51]}  b6 {[%clk 0:02:45]} 7. Nc3 {[%clk 0:02:43]}  Bb7 {[%clk 0:02:45]} 8. Bd3 {[%clk 0:02:43]}  d6 {[%clk 0:02:35]} 9. O-O {[%clk 0:02:42]}  Ng6 {[%clk 0:02:31]} 10. Be4 {[%clk 0:02:39]}  d5 {[%clk 0:02:30]} 11. Bd3 {[%clk 0:02:39]}  a6 {[%clk 0:02:29]} 12. Ne2 {[%clk 0:02:36]}  c5 {[%clk 0:02:28]} 13. c3 {[%clk 0:02:37]}  O-O {[%clk 0:02:26]} 14. g3 {[%clk 0:02:28]}  a5 {[%clk 0:02:22]} 15. h4 {[%clk 0:02:27]}  Ba6 {[%clk 0:02:16]} 16. h5 {[%clk 0:02:27]}  Ne7 {[%clk 0:02:15]} 17. h6 {[%clk 0:02:05]}  g6 {[%clk 0:02:09]} 18. Nh2 {[%clk 0:02:04]}  Bxd3 {[%clk 0:02:06]} 19. Qxd3 {[%clk 0:02:04]}  Nf5 {[%clk 0:02:04]} 20. Qd2 {[%clk 0:02:03]}  Nc6 {[%clk 0:02:00]} 21. Ng4 {[%clk 0:02:02]}  cxd4 {[%clk 0:01:51]} 22. cxd4 {[%clk 0:02:02]}  Rc8 {[%clk 0:01:50]} 23. a3 {[%clk 0:02:02]}  a4 {[%clk 0:01:49]} 24. Rac1 {[%clk 0:01:58]}  Kh8 {[%clk 0:01:37]} 25. Nf6 {[%clk 0:01:41]}  Qe7 {[%clk 0:01:36]} 26. Qf4 {[%clk 0:01:31]}  Na5 {[%clk 0:01:09]} 27. g4 {[%clk 0:01:29]}  Nh4 {[%clk 0:01:08]} 28. Kh2 {[%clk 0:01:18]}  Nc4 {[%clk 0:00:55]} 29. Kg3 {[%clk 0:01:15]}  g5 {[%clk 0:00:50]} 30. Qxg5 {[%clk 0:01:14]}  Ng6 {[%clk 0:00:46]} 31. Nxh7 {[%clk 0:00:56]}  Kxh7 {[%clk 0:00:43]} 32. Qh5 {[%clk 0:00:48]}  Nd2 {[%clk 0:00:38]} 33. Rfd1 {[%clk 0:00:44]}  Ne4+ {[%clk 0:00:38]} 34. Kg2 {[%clk 0:00:44]}  Qg5 {[%clk 0:00:37]} 35. Qxg5 {[%clk 0:00:38]}  Nxg5 {[%clk 0:00:37]} 36. f4 {[%clk 0:00:34]}  Ne4 {[%clk 0:00:35]} 37. Kf3 {[%clk 0:00:31]}  f6 {[%clk 0:00:32]} 38. Rxc8 {[%clk 0:00:21]}  Rxc8 {[%clk 0:00:31]} 39. f5 {[%clk 0:00:21]}  Nh4+ {[%clk 0:00:30]} 40. Kf4 {[%clk 0:00:19]}  Ng2+ {[%clk 0:00:28]} 41. Kf3 {[%clk 0:00:19]}  Nh4+ {[%clk 0:00:28]} 42. Kf4 {[%clk 0:00:19]}  Rc2 {[%clk 0:00:26]} 43. fxe6 {[%clk 0:00:16]}  Rxe2 {[%clk 0:00:21]} 44. e7 {[%clk 0:00:16]}  Ng6+ {[%clk 0:00:21]} 45. Kf5 {[%clk 0:00:16]}  Nxe7+ {[%clk 0:00:19]} 46. Ke6 {[%clk 0:00:17]}  Ng8 {[%clk 0:00:18]} 47. Rc1 {[%clk 0:00:16]}  fxe5 {[%clk 0:00:17]} 48. Rc7+ {[%clk 0:00:12]}  Kxh6 {[%clk 0:00:17]} 0-1


[Site "https://www.chess.com"]

[Event "Titled Tuesday Blitz August 1 Late 2023"]
[White "Davidson, Kevin"]
[Black "Krishna C R G"]
[WhiteFideId "2056810"]
[BlackFideId "5018625"]
[WhiteElo "2423"]
[BlackElo "2720"]
[Result "0-1"]
[Round "1"]
[TimeControl "180+1"]
[Date "2023.08.01"]
[WhiteClock "0:00:00"]
[BlackClock "0:01:11"]
[Board "65"]

1. e4 {[%clk 0:03:00]}  d6 {[%clk 0:02:55]} 2. d4 {[%clk 0:03:00]}  Nf6 {[%clk 0:02:55]} 3. Nc3 {[%clk 0:03:00]}  Nbd7 {[%clk 0:02:55]} 4. g4 {[%clk 0:02:59]}  h6 {[%clk 0:02:53]} 5. h3 {[%clk 0:02:59]}  e5 {[%clk 0:02:53]} 6. Nge2 {[%clk 0:02:54]}  Be7 {[%clk 0:02:52]} 7. Be3 {[%clk 0:02:53]}  c6 {[%clk 0:02:51]} 8. Bg2 {[%clk 0:02:53]}  Qc7 {[%clk 0:02:51]} 9. Qd2 {[%clk 0:02:48]}  Nb6 {[%clk 0:02:51]} 10. b3 {[%clk 0:02:47]}  a5 {[%clk 0:02:51]} 11. a4 {[%clk 0:02:44]}  Be6 {[%clk 0:02:48]} 12. Ng3 {[%clk 0:02:28]}  exd4 {[%clk 0:02:46]} 13. Bxd4 {[%clk 0:02:28]}  Nbd7 {[%clk 0:02:44]} 14. O-O {[%clk 0:02:17]}  g5 {[%clk 0:02:37]} 15. Nf5 {[%clk 0:01:55]}  Bxf5 {[%clk 0:02:35]} 16. exf5 {[%clk 0:01:55]}  Ne5 {[%clk 0:02:34]} 17. f4 {[%clk 0:01:52]}  gxf4 {[%clk 0:02:34]} 18. Qxf4 {[%clk 0:01:51]}  O-O-O {[%clk 0:02:29]} 19. Rae1 {[%clk 0:01:40]}  Nfd7 {[%clk 0:02:27]} 20. f6 {[%clk 0:01:24]}  Bxf6 {[%clk 0:02:25]} 21. Qf5 {[%clk 0:01:19]}  Kb8 {[%clk 0:02:23]} 22. Ne4 {[%clk 0:01:15]}  Be7 {[%clk 0:02:23]} 23. Ng3 {[%clk 0:01:01]}  Bh4 {[%clk 0:02:17]} 24. Qf4 {[%clk 0:00:43]}  Rde8 {[%clk 0:02:14]} 25. Re3 {[%clk 0:00:35]}  Bg5 {[%clk 0:02:13]} 26. Qf2 {[%clk 0:00:32]}  Bxe3 {[%clk 0:02:13]} 27. Bxe3 {[%clk 0:00:32]}  Re6 {[%clk 0:02:07]} 28. Nf5 {[%clk 0:00:26]}  Rhe8 {[%clk 0:02:07]} 29. Bxh6 {[%clk 0:00:24]}  Rg8 {[%clk 0:02:04]} 30. Bf4 {[%clk 0:00:24]}  f6 {[%clk 0:01:53]} 31. Qd4 {[%clk 0:00:15]}  Qb6 {[%clk 0:01:50]} 32. Qxb6 {[%clk 0:00:13]}  Nxb6 {[%clk 0:01:51]} 33. Rd1 {[%clk 0:00:13]}  Nc8 {[%clk 0:01:49]} 34. c4 {[%clk 0:00:09]}  Kc7 {[%clk 0:01:46]} 35. Kf2 {[%clk 0:00:09]}  Ng6 {[%clk 0:01:43]} 36. Bg3 {[%clk 0:00:08]}  Ne5 {[%clk 0:01:34]} 37. Rd2 {[%clk 0:00:05]}  Nb6 {[%clk 0:01:30]} 38. Rd1 {[%clk 0:00:04]}  Nbd7 {[%clk 0:01:30]} 39. Rd2 {[%clk 0:00:04]}  Nc5 {[%clk 0:01:31]} 40. Nd4 {[%clk 0:00:02]}  Ree8 {[%clk 0:01:28]} 41. Kg1 {[%clk 0:00:01]}  Ned3 {[%clk 0:01:16]} 42. Bh4 {[%clk 0:00:00]}  Nf4 {[%clk 0:01:11]} 0-1


[Site "https://www.chess.com"]

[Event "Titled Tuesday Blitz August 1 Late 2023"]
[White "Kazakov, Mikhail"]
[Black "Vetoshko, Volodymyr"]
[WhiteFideId "14102749"]
[BlackFideId "14122480"]
[WhiteElo "2420"]
[BlackElo "2710"]
[Result "0-1"]
[Round "1"]
[TimeControl "180+1"]
[Date "2023.08.01"]
[WhiteClock "0:00:08"]
[BlackClock "0:00:56"]
[Board "67"]

1. d4 {[%clk 0:02:37]}  d5 {[%clk 0:02:59]} 2. c4 {[%clk 0:02:37]}  e6 {[%clk 0:02:59]} 3. Nc3 {[%clk 0:02:37]}  a6 {[%clk 0:02:59]} 4. cxd5 {[%clk 0:02:36]}  exd5 {[%clk 0:03:00]} 5. Nf3 {[%clk 0:02:36]}  Nf6 {[%clk 0:02:59]} 6. Bg5 {[%clk 0:02:36]}  Be6 {[%clk 0:02:59]} 7. e3 {[%clk 0:02:36]}  Nbd7 {[%clk 0:02:59]} 8. Bd3 {[%clk 0:02:36]}  Bd6 {[%clk 0:02:59]} 9. O-O {[%clk 0:02:36]}  c6 {[%clk 0:02:59]} 10. Bf4 {[%clk 0:02:23]}  Qc7 {[%clk 0:02:59]} 11. Qd2 {[%clk 0:02:23]}  O-O {[%clk 0:02:57]} 12. Rac1 {[%clk 0:02:23]}  Rfe8 {[%clk 0:02:55]} 13. a3 {[%clk 0:02:21]}  Bg4 {[%clk 0:02:50]} 14. Be2 {[%clk 0:01:51]}  Bxf4 {[%clk 0:02:45]} 15. exf4 {[%clk 0:01:50]}  Ne4 {[%clk 0:02:46]} 16. Nxe4 {[%clk 0:01:39]}  Rxe4 {[%clk 0:02:24]} 17. g3 {[%clk 0:01:37]}  Rae8 {[%clk 0:02:23]} 18. Bd1 {[%clk 0:01:37]}  Qb6 {[%clk 0:02:18]} 19. Ne5 {[%clk 0:01:30]}  Rxd4 {[%clk 0:02:10]} 20. Qe3 {[%clk 0:01:04]}  Bxd1 {[%clk 0:01:38]} 21. Nxd7 {[%clk 0:00:43]}  Rxe3 {[%clk 0:01:35]} 22. Nxb6 {[%clk 0:00:43]}  Red3 {[%clk 0:01:35]} 23. Re1 {[%clk 0:00:28]}  g6 {[%clk 0:01:28]} 24. Nd7 {[%clk 0:00:27]}  Rd2 {[%clk 0:01:21]} 25. Nf6+ {[%clk 0:00:20]}  Kg7 {[%clk 0:01:17]} 26. Ne8+ {[%clk 0:00:19]}  Kf8 {[%clk 0:01:16]} 27. Nd6 {[%clk 0:00:19]}  Bf3 {[%clk 0:01:12]} 28. b4 {[%clk 0:00:18]}  Ra2 {[%clk 0:00:57]} 29. Nxb7 {[%clk 0:00:16]}  Rdd2 {[%clk 0:00:58]} 30. Rf1 {[%clk 0:00:15]}  Be2 {[%clk 0:00:58]} 31. Rfe1 {[%clk 0:00:15]}  Bb5 {[%clk 0:00:59]} 32. Rf1 {[%clk 0:00:14]}  Bxf1 {[%clk 0:00:59]} 33. Rxf1 {[%clk 0:00:15]}  Rxa3 {[%clk 0:00:57]} 34. Nc5 {[%clk 0:00:14]}  Rda2 {[%clk 0:00:56]} 35. Kg2 {[%clk 0:00:08]}  Ra1 {[%clk 0:00:56]} 0-1


[Site "https://www.chess.com"]

[Event "Titled Tuesday Blitz August 1 Late 2023"]
[White "Papasimakopoulos, Alexandros"]
[Black "Todorovic, Bojan"]
[WhiteFideId "4244125"]
[BlackFideId "917087"]
[WhiteElo "2708"]
[BlackElo "2420"]
[Result "0-1"]
[Round "1"]
[TimeControl "180+1"]
[Date "2023.08.01"]
[WhiteClock "0:00:06"]
[BlackClock "0:01:04"]
[Board "68"]

1. d4 {[%clk 0:02:56]}  Nf6 {[%clk 0:02:59]} 2. c4 {[%clk 0:02:56]}  e6 {[%clk 0:02:58]} 3. Nc3 {[%clk 0:02:56]}  Bb4 {[%clk 0:02:57]} 4. Qc2 {[%clk 0:02:56]}  Nc6 {[%clk 0:02:57]} 5. e3 {[%clk 0:02:56]}  O-O {[%clk 0:02:57]} 6. Bd2 {[%clk 0:02:55]}  d6 {[%clk 0:02:57]} 7. a3 {[%clk 0:02:55]}  Bxc3 {[%clk 0:02:57]} 8. Bxc3 {[%clk 0:02:56]}  e5 {[%clk 0:02:56]} 9. d5 {[%clk 0:02:56]}  Ne7 {[%clk 0:02:55]} 10. Bd3 {[%clk 0:02:56]}  a5 {[%clk 0:02:55]} 11. b3 {[%clk 0:02:56]}  Ng6 {[%clk 0:02:48]} 12. Ne2 {[%clk 0:02:56]}  Re8 {[%clk 0:02:46]} 13. f3 {[%clk 0:02:56]}  Bd7 {[%clk 0:02:42]} 14. Ng3 {[%clk 0:02:52]}  c6 {[%clk 0:02:41]} 15. dxc6 {[%clk 0:02:39]}  bxc6 {[%clk 0:02:40]} 16. O-O {[%clk 0:02:38]}  d5 {[%clk 0:02:40]} 17. cxd5 {[%clk 0:02:37]}  cxd5 {[%clk 0:02:40]} 18. Bxg6 {[%clk 0:02:30]}  hxg6 {[%clk 0:02:38]} 19. Qb2 {[%clk 0:02:31]}  Qe7 {[%clk 0:02:34]} 20. b4 {[%clk 0:02:30]}  Bb5 {[%clk 0:02:29]} 21. Rfd1 {[%clk 0:02:24]}  a4 {[%clk 0:02:28]} 22. Rac1 {[%clk 0:02:18]}  Rac8 {[%clk 0:02:25]} 23. Nh1 {[%clk 0:02:12]}  g5 {[%clk 0:02:21]} 24. Be1 {[%clk 0:02:05]}  Bc4 {[%clk 0:02:09]} 25. Bg3 {[%clk 0:02:02]}  g4 {[%clk 0:02:07]} 26. Nf2 {[%clk 0:01:53]}  gxf3 {[%clk 0:02:06]} 27. gxf3 {[%clk 0:01:54]}  Nh5 {[%clk 0:02:06]} 28. Kg2 {[%clk 0:01:48]}  Qg5 {[%clk 0:02:02]} 29. Qd2 {[%clk 0:01:36]}  Bb3 {[%clk 0:02:00]} 30. Rxc8 {[%clk 0:01:35]}  Rxc8 {[%clk 0:01:59]} 31. Rc1 {[%clk 0:01:33]}  Rxc1 {[%clk 0:01:47]} 32. Qxc1 {[%clk 0:01:34]}  Bc4 {[%clk 0:01:47]} 33. f4 {[%clk 0:01:23]}  exf4 {[%clk 0:01:41]} 34. exf4 {[%clk 0:01:24]}  Qf5 {[%clk 0:01:41]} 35. Qe3 {[%clk 0:01:22]}  Nf6 {[%clk 0:01:39]} 36. Qe5 {[%clk 0:01:17]}  Qc2 {[%clk 0:01:36]} 37. f5 {[%clk 0:01:11]}  Ne4 {[%clk 0:01:34]} 38. Qe8+ {[%clk 0:01:10]}  Kh7 {[%clk 0:01:31]} 39. Qxf7 {[%clk 0:01:11]}  Nxf2 {[%clk 0:01:25]} 40. Qg6+ {[%clk 0:01:07]}  Kg8 {[%clk 0:01:24]} 41. Qe6+ {[%clk 0:01:07]}  Kh7 {[%clk 0:01:23]} 42. Bxf2 {[%clk 0:01:07]}  Bd3 {[%clk 0:01:16]} 43. f6 {[%clk 0:00:46]}  Be4+ {[%clk 0:01:16]} 44. Kg3 {[%clk 0:00:45]}  Qd3+ {[%clk 0:01:16]} 45. Kh4 {[%clk 0:00:43]}  Qf3 {[%clk 0:01:09]} 46. f7 {[%clk 0:00:17]}  Qxf2+ {[%clk 0:01:06]} 47. Kg4 {[%clk 0:00:17]}  Qf3+ {[%clk 0:01:05]} 48. Kh4 {[%clk 0:00:17]}  Qf4+ {[%clk 0:01:04]} 49. Kh3 {[%clk 0:00:09]}  Bf5+ {[%clk 0:01:04]} 50. Qxf5+ {[%clk 0:00:06]}  Qxf5+ {[%clk 0:01:04]} 51. Kh4 {[%clk 0:00:07]}  Qxf7 {[%clk 0:01:04]} 52. h3 {[%clk 0:00:06]}  Qe6 {[%clk 0:01:04]} 0-1


[Site "https://www.chess.com"]

[Event "Titled Tuesday Blitz August 1 Late 2023"]
[White "Viana Da Costa, Fernando"]
[Black "Kozionov, Kirill"]
[WhiteFideId "2111900"]
[BlackFideId "24101729"]
[WhiteElo "2420"]
[BlackElo "2706"]
[Result "0-1"]
[Round "1"]
[TimeControl "180+1"]
[Date "2023.08.01"]
[WhiteClock "0:00:18"]
[BlackClock "0:00:01"]
[Board "69"]

1. e4 {[%clk 0:02:57]}  Nc6 {[%clk 0:02:53]} 2. d4 {[%clk 0:02:55]}  d6 {[%clk 0:02:53]} 3. Nf3 {[%clk 0:02:50]}  Nf6 {[%clk 0:02:52]} 4. Nc3 {[%clk 0:02:49]}  g6 {[%clk 0:02:52]} 5. h3 {[%clk 0:02:49]}  Bg7 {[%clk 0:02:52]} 6. Be3 {[%clk 0:02:46]}  a6 {[%clk 0:02:51]} 7. Qd2 {[%clk 0:02:41]}  b5 {[%clk 0:02:51]} 8. Bd3 {[%clk 0:02:33]}  Bb7 {[%clk 0:02:48]} 9. O-O-O {[%clk 0:02:32]}  Nb4 {[%clk 0:02:39]} 10. Bh6 {[%clk 0:02:23]}  Nxd3+ {[%clk 0:02:35]} 11. cxd3 {[%clk 0:02:23]}  Bxh6 {[%clk 0:02:24]} 12. Qxh6 {[%clk 0:02:24]}  Qd7 {[%clk 0:02:14]} 13. Kb1 {[%clk 0:02:21]}  b4 {[%clk 0:02:01]} 14. Ne2 {[%clk 0:02:20]}  a5 {[%clk 0:02:01]} 15. d5 {[%clk 0:02:18]}  c6 {[%clk 0:01:49]} 16. dxc6 {[%clk 0:02:18]}  Bxc6 {[%clk 0:01:49]} 17. Ned4 {[%clk 0:02:19]}  Bb7 {[%clk 0:01:42]} 18. Rc1 {[%clk 0:02:19]}  a4 {[%clk 0:01:23]} 19. Ka1 {[%clk 0:02:11]}  Ba6 {[%clk 0:00:57]} 20. Rhd1 {[%clk 0:02:08]}  Rc8 {[%clk 0:00:56]} 21. Qd2 {[%clk 0:02:06]}  Rxc1+ {[%clk 0:00:43]} 22. Rxc1 {[%clk 0:02:05]}  b3 {[%clk 0:00:42]} 23. Qa5 {[%clk 0:02:01]}  Qb7 {[%clk 0:00:14]} 24. Rc7 {[%clk 0:01:55]}  Qa8 {[%clk 0:00:13]} 25. Qxa4+ {[%clk 0:01:52]}  Kf8 {[%clk 0:00:12]} 26. Qxb3 {[%clk 0:01:33]}  Qd8 {[%clk 0:00:07]} 27. Qb6 {[%clk 0:01:29]}  Bxd3 {[%clk 0:00:05]} 28. Nc6 {[%clk 0:01:29]}  Qa8 {[%clk 0:00:03]} 29. Ra7 {[%clk 0:01:29]}  Qc8 {[%clk 0:00:02]} 30. Rc7 {[%clk 0:01:18]}  Qa8 {[%clk 0:00:02]} 31. Rxe7 {[%clk 0:01:12]}  Bxe4 {[%clk 0:00:02]} 32. Ng5 {[%clk 0:00:26]}  Bd5 {[%clk 0:00:02]} 33. Qc7 {[%clk 0:00:18]}  Qxa2# {[%clk 0:00:01]} 0-1


[Site "https://www.chess.com"]

[Event "Titled Tuesday Blitz August 1 Late 2023"]
[White "only_strong_moves"]
[Black "Pein, Jonathan"]
[BlackFideId "417092"]
[WhiteElo "2704"]
[BlackElo "2417"]
[Result "1-0"]
[Round "1"]
[TimeControl "180+1"]
[Date "2023.08.01"]
[WhiteClock "0:00:06"]
[BlackClock "0:00:04"]
[Board "72"]

1. d4 {[%clk 0:02:59]}  c5 {[%clk 0:02:59]} 2. d5 {[%clk 0:02:59]}  f5 {[%clk 0:02:59]} 3. c4 {[%clk 0:02:59]}  Nf6 {[%clk 0:02:59]} 4. Nc3 {[%clk 0:03:00]}  g6 {[%clk 0:03:00]} 5. g3 {[%clk 0:03:00]}  Bg7 {[%clk 0:03:00]} 6. Bg2 {[%clk 0:03:00]}  d6 {[%clk 0:02:57]} 7. Nf3 {[%clk 0:03:01]}  Nbd7 {[%clk 0:02:58]} 8. O-O {[%clk 0:02:59]}  O-O {[%clk 0:02:58]} 9. Nd2 {[%clk 0:02:58]}  b6 {[%clk 0:02:50]} 10. e4 {[%clk 0:02:51]}  Ne5 {[%clk 0:02:50]} 11. Qe2 {[%clk 0:02:37]}  Ba6 {[%clk 0:02:49]} 12. f4 {[%clk 0:02:33]}  Neg4 {[%clk 0:02:26]} 13. h3 {[%clk 0:02:32]}  Nh5 {[%clk 0:02:27]} 14. Rf3 {[%clk 0:02:00]}  Bd4+ {[%clk 0:02:14]} 15. Kh1 {[%clk 0:01:48]}  e5 {[%clk 0:01:35]} 16. Nf1 {[%clk 0:01:17]}  exf4 {[%clk 0:01:32]} 17. Bxf4 {[%clk 0:00:50]}  Re8 {[%clk 0:01:18]} 18. Qd3 {[%clk 0:00:34]}  Nxf4 {[%clk 0:01:14]} 19. gxf4 {[%clk 0:00:25]}  Nf2+ {[%clk 0:01:13]} 20. Rxf2 {[%clk 0:00:26]}  Bxf2 {[%clk 0:01:14]} 21. exf5 {[%clk 0:00:26]}  Re3 {[%clk 0:01:12]} 22. Nxe3 {[%clk 0:00:25]}  Qh4 {[%clk 0:01:10]} 23. Ng4 {[%clk 0:00:19]}  Bd4 {[%clk 0:01:05]} 24. fxg6 {[%clk 0:00:18]}  Bc8 {[%clk 0:01:03]} 25. gxh7+ {[%clk 0:00:17]}  Kh8 {[%clk 0:01:04]} 26. Qe2 {[%clk 0:00:13]}  Bd7 {[%clk 0:01:02]} 27. Ne4 {[%clk 0:00:10]}  Re8 {[%clk 0:01:00]} 28. Qf3 {[%clk 0:00:09]}  Kxh7 {[%clk 0:00:54]} 29. f5 {[%clk 0:00:08]}  Be5 {[%clk 0:00:50]} 30. Rf1 {[%clk 0:00:08]}  Kh8 {[%clk 0:00:48]} 31. Qe3 {[%clk 0:00:08]}  Rg8 {[%clk 0:00:47]} 32. Qh6+ {[%clk 0:00:08]}  Qxh6 {[%clk 0:00:47]} 33. Nxh6 {[%clk 0:00:09]}  Rf8 {[%clk 0:00:47]} 34. f6 {[%clk 0:00:08]}  Kh7 {[%clk 0:00:46]} 35. Ng4 {[%clk 0:00:08]}  Bxb2 {[%clk 0:00:46]} 36. Ng5+ {[%clk 0:00:07]}  Kg6 {[%clk 0:00:46]} 37. Ne6 {[%clk 0:00:07]}  Rf7 {[%clk 0:00:26]} 38. Be4+ {[%clk 0:00:08]}  Kh5 {[%clk 0:00:24]} 39. Kh2 {[%clk 0:00:05]}  b5 {[%clk 0:00:14]} 40. Rf5+ {[%clk 0:00:06]}  Kh4 {[%clk 0:00:14]} 41. Rf4 {[%clk 0:00:07]}  Kh5 {[%clk 0:00:12]} 42. Rf5+ {[%clk 0:00:07]}  Kh4 {[%clk 0:00:13]} 43. Rf2 {[%clk 0:00:07]}  bxc4 {[%clk 0:00:13]} 44. Rxb2 {[%clk 0:00:07]}  Ba4 {[%clk 0:00:09]} 45. Nf4 {[%clk 0:00:04]}  Kg5 {[%clk 0:00:08]} 46. Ne6+ {[%clk 0:00:04]}  Kh4 {[%clk 0:00:09]} 47. Bg6 {[%clk 0:00:05]}  c3 {[%clk 0:00:07]} 48. Rg2 {[%clk 0:00:03]}  Rb7 {[%clk 0:00:06]} 49. f7 {[%clk 0:00:04]}  Rxf7 {[%clk 0:00:07]} 50. Bxf7 {[%clk 0:00:04]}  c2 {[%clk 0:00:07]} 51. Rg1 {[%clk 0:00:05]}  c4 {[%clk 0:00:06]} 52. Nf2 {[%clk 0:00:05]}  c1=Q {[%clk 0:00:04]} 53. Rg4# {[%clk 0:00:06]} 1-0


[Site "https://www.chess.com"]

[Event "Titled Tuesday Blitz August 1 Late 2023"]
[White "Gatterer, Florian"]
[Black "nickVet"]
[WhiteFideId "811688"]
[WhiteElo "2416"]
[BlackElo "2703"]
[Result "0-1"]
[Round "1"]
[TimeControl "180+1"]
[Date "2023.08.01"]
[WhiteClock "0:00:00"]
[BlackClock "0:00:56"]
[Board "73"]

1. c4 {[%clk 0:02:58]}  c6 {[%clk 0:02:58]} 2. Nf3 {[%clk 0:02:55]}  d5 {[%clk 0:02:59]} 3. g3 {[%clk 0:02:56]}  Nf6 {[%clk 0:02:59]} 4. Bg2 {[%clk 0:02:56]}  Bg4 {[%clk 0:02:59]} 5. Ne5 {[%clk 0:02:54]}  Bf5 {[%clk 0:02:59]} 6. cxd5 {[%clk 0:02:51]}  cxd5 {[%clk 0:02:58]} 7. Qb3 {[%clk 0:02:44]}  Qc7 {[%clk 0:02:58]} 8. Qc3 {[%clk 0:02:42]}  Nc6 {[%clk 0:02:48]} 9. Nxc6 {[%clk 0:02:37]}  bxc6 {[%clk 0:02:47]} 10. d4 {[%clk 0:02:25]}  e6 {[%clk 0:02:44]} 11. O-O {[%clk 0:02:24]}  c5 {[%clk 0:02:33]} 12. Bf4 {[%clk 0:02:20]}  Qb6 {[%clk 0:02:33]} 13. dxc5 {[%clk 0:02:13]}  Bxc5 {[%clk 0:02:33]} 14. e3 {[%clk 0:02:02]}  O-O {[%clk 0:02:29]} 15. Nd2 {[%clk 0:01:44]}  Bb4 {[%clk 0:02:27]} 16. Qc1 {[%clk 0:01:37]}  Rac8 {[%clk 0:02:08]} 17. Qd1 {[%clk 0:01:37]}  Qa6 {[%clk 0:01:18]} 18. Nb3 {[%clk 0:01:22]}  Bd3 {[%clk 0:01:18]} 19. Be5 {[%clk 0:01:12]}  Nd7 {[%clk 0:01:12]} 20. Bxg7 {[%clk 0:01:06]}  Kxg7 {[%clk 0:01:10]} 21. Qg4+ {[%clk 0:01:06]}  Kh8 {[%clk 0:01:02]} 22. Qxb4 {[%clk 0:00:58]}  Bxf1 {[%clk 0:01:03]} 23. Bxf1 {[%clk 0:00:58]}  Qb6 {[%clk 0:01:03]} 24. Qh4 {[%clk 0:00:55]}  Qd8 {[%clk 0:00:59]} 25. Qd4+ {[%clk 0:00:51]}  Qf6 {[%clk 0:00:59]} 26. Qxa7 {[%clk 0:00:51]}  Ne5 {[%clk 0:00:58]} 27. Bg2 {[%clk 0:00:41]}  Rc2 {[%clk 0:00:57]} 28. Qd4 {[%clk 0:00:00]}  Qxf2+ {[%clk 0:00:56]} 0-1


[Site "https://www.chess.com"]